[Event "Western Asian Juniors Chess-ch 2023"]
[Site "Colombo"]
[Date "2023.11.30"]
[Round "1.1"]
[White "Samaranayake, Pamok Methdinu"]
[Black "Liyanage, Ranindu Dilshan"]
[Result "0-1"]
[ECO "D00"]
[WhiteElo "1720"]
[BlackElo "2400"]
[Annotator "TA"]
[PlyCount "120"]
[EventDate "2023.11.30"]
[EventCountry "SRI"]
[SourceTitle "playchess.com"]
[Source "ChessBase"]
[SourceQuality "1"]
[TimeControl "5400+30"]

{[%evp 9,118,0,15,-14,-1,-16,-6,-31,-12,-52,-30,-28,-22,-27,-35,-36,3,0,12,17,13,14,9,-8,26,28,21,25,59,52,47,0,0,-15,-35,-213,-219,-209,-224,-222,-222,-215,-176,-216,-202,-201,-104,-118,-71,-83,61,61,62,83,58,61,60,66,90,95,150,132,130,120,140,124,163,54,66,0,0,-44,-8,-8,-10,-8,0,0,0,-8,0,0,0,-281,-280,-398,-282,-29989,-29989,-29989,-29990,-29991,-29992,-29994,-29995,-29995,-29994,-29994,-29995,-29995,-29996,-29996,-29996,-29996,-29997,-29997,-29997,-29998,-29998,-29998,-29999]} 1. d4 {[%emt 0:09:11]} e6 {[%emt 0:01:33]} 2. Bf4 {[%emt 0:01:06]} d5 {[%emt 0:02:19]} 3. Nc3 {[%emt 0:01:07]} Bd6 {[%emt 0:09:01]} 4. e3 {[%emt 0:04:18]} Nf6 {[%emt 0:02:24]} 5. Nf3 {[%emt 0:01:12]} a6 {[%emt 1:17:43]} 6. Ne5 {[%emt 0:01:08] D00: 1 d4 d5: Unusual lines.} b5 {[%emt 0:00:00]} 7. a3 {[%emt 0:02:18]} Bb7 {[%emt 0:00:00]} 8. Bd3 {[%emt 0:00:45] [#] The position is equal.} c5 $146 {[%emt 0:00:00]} ({Predecessor:} 8... Nbd7 9. Bg3 Qe7 10. f4 Ne4 11. Nxe4 dxe4 12. Be2 O-O 13. c4 f6 14. Nxd7 Qxd7 {0-1 Tsydypov,Z (2593)-Tang,A (2582) Wch Blitz Almaty 2022 (21)}) 9. g4 {[%emt 0:18:23]} c4 {[%emt 0:00:00]} 10. Be2 {[%emt 0:00:25]} Ne4 {[%emt 0:00:00]} 11. Nxe4 {[%emt 0:11:29]} dxe4 {[%emt 0:00:00]} 12. g5 {[%emt 0:01:06]} Bxe5 {[%emt 0:00:00]} 13. Bxe5 {[%emt 0:04:24]} Qxg5 {[%emt 0:00:00]} 14. h4 $1 {[%emt 0:01:10]} Qe7 {[%emt 0:00:00] Black is weak on the dark squares} (14... Qg2 15. Kd2 Nc6 16. Bg3 Nxd4 17. exd4 e3+ 18. Kxe3 $16) 15. Bxg7 {[%emt 0:02:36]} Rg8 {[%emt 0:00:00]} 16. Be5 {[%emt 0:03:02]} Nd7 {[%emt 0:00:00]} (16... Nc6 $5 {[%cal Rc6e5]}) 17. Bg3 {[%emt 0:04:31]} Nb6 {[%emt 0:00:00]} 18. Qd2 {[%emt 0:03:28]} Rc8 {[%emt 0:00:00][%cal Oc4c3]} 19. c3 $1 {[%emt 0:05:14]} a5 {[%emt 0:00:00]} 20. Rb1 {[%emt 0:01:18]} (20. Rg1 $14) 20... Nd5 $11 {[%emt 0:00:00]} 21. Bf1 {[%emt 0:11:37]} Kd7 {[%emt 0:00:00]} 22. b3 $2 {[%emt 0:01:05]} (22. Qe2 $15) 22... Qxa3 $19 {[%emt 0:00:00]} 23. bxc4 {[%emt 0:00:11]} Nxc3 {[%emt 0:00:00]} 24. Rc1 {[%emt 0:00:30] [#]} Nd5 {[%emt 0:00:00][%mdl 512]} 25. Rb1 {[%emt 0:03:13][%cal Bc1b1,Bb1b3,Bb3c3][%mdl 32]} Nb4 {[%emt 0:00:00]} (25... Nc3 26. Rc1 b4 27. d5) 26. c5 {[%emt 0:00:06]} Bc6 {[%emt 0:00:00]} (26... Nd3+ 27. Bxd3 Qxd3 28. Qxd3 exd3 29. Rg1 $17) 27. Be2 {[%emt 0:00:17]} Nd5 {[%emt 0:02:45]} (27... f5 $19 {...Nd5 would be deadly.} 28. Qb2 Rxg3 29. Qxa3 Nc2+ 30. Kd2 Nxa3 31. fxg3 Nxb1+ 32. Rxb1 b4) 28. O-O $17 {[%emt 0:06:17]} (28. Bxb5 $2 Bxb5 29. Qb2 (29. Rxb5 $2 Qa1+ {[%mdl 64] Skewer} 30. Qd1 Qxd1+ 31. Kxd1 Nc3+ 32. Kc2 Nxb5 $19) 29... Qb4+ 30. Qxb4 axb4 $19) 28... Qc3 {[%emt 0:01:03] Black is more active.} (28... b4 $142 {[%cal Od5e3] Hoping for ...Nxe3!} 29. Kh2 f5) 29. Qa2 {[%emt 0:00:56]} f5 {[%emt 0:03:25]} (29... Nxe3 $1 $17 30. Rfc1 Qxd4) 30. Rb3 $1 $14 {[%emt 0:00:52]} Nb4 $1 {[%emt 0:01:37]} 31. Rxc3 {[%emt 0:01:28]} Nxa2 {[%emt 0:00:05]} 32. Ra3 {[%emt 0:00:03][%csl LRa2,LRa5]} Nb4 {[%emt 0:00:16] Strongly threatening ...Ra8.} 33. Rxa5 {[%emt 0:02:14] aiming for Ra7+.} Ra8 {[%emt 0:01:36] Repels Ra7+} 34. Rfa1 {[%emt 0:00:00]} Nd3 {[%emt 0:01:33]} (34... Rxa5 $142 35. Rxa5 e5) 35. Ra7+ $16 {[%emt 0:00:00][%mdl 64] Skewer} Rxa7 {[%emt 0:00:05]} 36. Rxa7+ {[%emt 0:00:00]} Kd8 {[%emt 0:00:07] [#]} 37. Kf1 $1 {[%emt 0:00:00] And now Bc7+ would win.} (37. Rxh7 b4 38. Bd1 f4 39. exf4 e3 $15) 37... b4 {[%emt 0:00:18] [#]} 38. Bd1 {[%emt 0:00:36]} (38. Rxh7 $2 b3 39. Bd1 b2 $19) ({Only move:} 38. Bc7+ $1 $18 Kc8 39. Bd6) 38... f4 $14 {[%emt 0:01:53]} 39. exf4 {[%emt 0:02:24]} (39. Bxf4 $14 Nxf4 40. exf4) 39... e3 $1 $11 {[%emt 0:00:18]} 40. Bc2 {[%emt 0:00:00] [#]} (40. Rxh7 exf2 41. Bxf2 Bg2+ 42. Ke2 Be4 $17) 40... Nxf4 {[%emt 0:00:25][%mdl 64] ...Bb5+ is the strong threat. Back Rank} 41. fxe3 $1 {[%emt 0:00:27]} Rxg3 {[%emt 0:00:20]} 42. exf4 $15 {[%emt 0:00:07][%mdl 4096] Endgame KRB-KRB} b3 {[%emt 0:00:34]} 43. Bxh7 {[%emt 0:00:27]} b2 {[%emt 0:01:04]} 44. Kf2 {[%emt 0:00:48]} Rf3+ {[%emt 0:00:16]} 45. Ke2 {[%emt 0:00:27]} Rxf4 {[%emt 0:00:27][%cal Oc6e4]} 46. Ra2 $2 {[%emt 0:00:41][%mdl 8192]} (46. Kd2 $11 {and White stays safe.}) 46... Rxh4 $19 {[%emt 0:00:05]} 47. Bd3 {[%emt 0:00:16]} (47. Bb1 $142 Bd5 48. Ra4) 47... Bb5 {[%emt 0:01:31][%mdl 64] Decoy, Promotion} ({And not} 47... Rxd4 48. Rxb2 Rd5 49. Ke3 $11) 48. Ra8+ $2 {[%emt 0:00:40]} (48. Ke3 $19 Rh3+ {[%mdl 64] Deflection} 49. Kf4 Rxd3 50. Rxb2) 48... Kc7 {[%emt 0:00:19]} 49. Ra7+ {[%emt 0:00:14]} Kb8 {[%emt 0:00:10]} 50. Bxb5 {[%emt 0:00:48]} b1=Q {[%emt 0:00:09]} (50... b1=B $2 51. Rd7 $18) 51. Bd3 {[%emt 0:00:07]} Rh2+ {[%emt 0:00:09]} 52. Ke3 {[%emt 0:00:04]} Rh3+ {[%emt 0:00:06]} 53. Kf2 {[%emt 0:00:03]} Qb2+ {[%emt 0:00:09]} 54. Be2 {[%emt 0:00:05]} Kxa7 {[%emt 0:00:04]} 55. c6 {[%emt 0:00:04]} Qxd4+ {[%emt 0:00:04]} 56. Ke1 {[%emt 0:00:04]} Rh1+ {[%emt 0:00:07]} 57. Bf1 {[%emt 0:00:02]} Qe3+ {[%emt 0:00:05]} 58. Kd1 {[%emt 0:00:03]} Rxf1+ {[%emt 0:00:07]} 59. Kc2 {[%emt 0:00:03]} Rf2+ {[%emt 0:00:05]} 60. Kb1 {[%emt 0:00:04]} Qe1# {[%emt 0:00:05] Both players deserved the win here. An entertaining game by Liyanage.   Weighted Error Value: White=0.32/Black=0.16 (very precise)} 0-1

[Event "Western Asian Juniors Chess-ch 2023"]
[Site "Colombo"]
[Date "2023.11.30"]
[Round "1.2"]
[White "De Silva, L M S T"]
[Black "Ovitigala, Chenitha Mithvidu"]
[Result "1-0"]
[ECO "A13"]
[WhiteElo "2394"]
[BlackElo "1710"]
[Annotator "RC"]
[PlyCount "141"]
[EventDate "2023.11.30"]
[EventCountry "SRI"]
[SourceTitle "playchess.com"]
[Source "ChessBase"]
[SourceQuality "1"]
[TimeControl "5400+30"]

1. Nf3 {[%emt 0:03:14]} Nf6 {[%emt 0:00:37]} 2. c4 {[%emt 0:00:07]} e6 {[%emt 0:01:35]} 3. e3 {[%emt 0:00:38]} d5 {[%emt 0:01:59]} 4. b3 {[%emt 0:00:36]} g6 {[%emt 0:05:13]} 5. Bb2 {[%emt 0:02:45]} Bg7 {[%emt 0:01:27]} 6. Be2 {[%emt 0:01:06]} O-O {[%emt 0:05:33]} 7. O-O {[%emt 0:04:40]} b6 {[%emt 0:02:58]} 8. cxd5 {[%emt 0:01:48]} exd5 {[%emt 0:01:41]} 9. Nc3 {[%emt 0:00:47]} Bb7 {[%emt 0:04:49]} 10. Rc1 {[%emt 0:01:34]} Ne4 {[%emt 0:12:32]} 11. Qc2 {[%emt 0:05:44]} Nxc3 {[%emt 0:09:16]} 12. Bxc3 {[%emt 0:00:15]} c5 {[%emt 0:01:33]} 13. Bxg7 {[%emt 0:06:58]} Kxg7 {[%emt 0:00:17]} 14. d4 {[%emt 0:00:08]} Nd7 {[%emt 0:04:24]} 15. dxc5 {[%emt 0:04:19]} bxc5 {[%emt 0:06:02]} 16. Rfd1 {[%emt 0:10:13]} Qe7 {[%emt 0:05:42]} 17. Ne1 {[%emt 0:06:25]} Rac8 {[%emt 0:07:36]} 18. Bf3 {[%emt 0:07:03]} Nf6 {[%emt 0:12:35]} 19. Qb2 {[%emt 0:06:51]} Kg8 {[%emt 0:03:49]} 20. Qa3 {[%emt 0:00:51]} Rc7 {[%emt 0:02:49]} 21. Nd3 {[%emt 0:02:28]} c4 {[%emt 0:04:48]} 22. Qxe7 {[%emt 0:03:33]} Rxe7 {[%emt 0:00:08]} 23. bxc4 {[%emt 0:00:45]} dxc4 {[%emt 0:00:32]} 24. Bxb7 {[%emt 0:00:09]} Rxb7 {[%emt 0:01:55]} 25. Rxc4 {[%emt 0:02:42]} Rd8 {[%emt 0:01:28]} 26. Kf1 {[%emt 0:01:56]} Kg7 {[%emt 0:00:51]} 27. Ke1 {[%emt 0:03:10]} Rd6 {[%emt 0:01:05]} 28. f3 {[%emt 0:03:05]} Rd5 {[%emt 0:00:41]} 29. e4 {[%emt 0:01:45]} Ra5 {[%emt 0:00:19]} 30. Rd2 {[%emt 0:01:16]} Rb1+ {[%emt 0:00:33]} 31. Rc1 {[%emt 0:00:09]} Rb6 {[%emt 0:00:36]} 32. Nc5 {[%emt 0:01:02]} Rc6 {[%emt 0:00:31]} 33. Rdc2 {[%emt 0:00:25]} Nh5 {[%emt 0:00:26]} 34. Nb3 {[%emt 0:02:01]} Rxc2 {[%emt 0:00:18]} 35. Rxc2 {[%emt 0:00:01]} Ra3 {[%emt 0:00:14]} 36. Kd2 {[%emt 0:01:59]} Nf4 {[%emt 0:00:27]} 37. g3 {[%emt 0:03:20]} Ne6 {[%emt 0:00:24]} 38. Kc1 {[%emt 0:00:37]} Ng5 {[%emt 0:01:00]} 39. Kb2 {[%emt 0:00:29]} Ra6 {[%emt 0:00:22]} 40. Rc3 {[%emt 0:00:23]} Rd6 {[%emt 0:00:31]} 41. h4 {[%emt 0:02:02]} Ne6 {[%emt 0:00:41]} 42. Kc1 {[%emt 0:00:22]} Ra6 {[%emt 0:00:38]} 43. Rc2 {[%emt 0:00:08]} Rd6 {[%emt 0:00:15]} 44. Rd2 {[%emt 0:01:09]} Rc6+ {[%emt 0:00:33]} 45. Kb2 {[%emt 0:00:15]} Rc7 {[%emt 0:00:36]} 46. f4 {[%emt 0:00:43]} Rb7 {[%emt 0:00:30]} 47. Rd5 {[%emt 0:00:31]} Rb4 {[%emt 0:00:14]} 48. e5 {[%emt 0:04:09]} Re4 {[%emt 0:00:31]} 49. Kc3 {[%emt 0:00:34]} Re3+ {[%emt 0:00:26]} 50. Rd3 {[%emt 0:00:02]} Re2 {[%emt 0:00:25]} 51. a4 {[%emt 0:00:15]} Re4 {[%emt 0:00:18]} 52. a5 {[%emt 0:01:03]} h5 {[%emt 0:00:18]} 53. Kb2 {[%emt 0:01:30]} Nc7 {[%emt 0:01:13]} 54. Rd7 {[%emt 0:00:41]} Nb5 {[%emt 0:00:16]} 55. Nc5 {[%emt 0:00:38]} Rc4 {[%emt 0:00:54]} 56. Ne6+ {[%emt 0:00:25]} Kg8 {[%emt 0:00:22]} 57. Rd8+ {[%emt 0:00:19]} Kh7 {[%emt 0:00:07]} 58. Ng5+ {[%emt 0:00:08]} Kg7 {[%emt 0:00:17]} 59. Rd7 {[%emt 0:00:20]} Rb4+ {[%emt 0:01:06]} 60. Kc2 {[%emt 0:00:22]} Rc4+ {[%emt 0:00:34]} 61. Kb3 {[%emt 0:01:17]} Rc7 {[%emt 0:00:36]} 62. e6 {[%emt 0:01:24]} Rxd7 {[%emt 0:00:31]} 63. exd7 {[%emt 0:00:01]} Nd4+ {[%emt 0:00:10]} 64. Kc4 {[%emt 0:00:09]} Nc6 {[%emt 0:00:08]} 65. Kd5 {[%emt 0:00:11]} Nd8 {[%emt 0:00:23]} 66. a6 {[%emt 0:00:35]} Kg8 {[%emt 0:00:24]} 67. Kd6 {[%emt 0:00:24]} Kf8 {[%emt 0:00:08]} 68. Ne4 {[%emt 0:00:15]} f5 {[%emt 0:00:11]} 69. Nc5 {[%emt 0:00:10]} Nf7+ {[%emt 0:00:40]} 70. Ke6 {[%emt 0:00:08]} Nd8+ {[%emt 0:00:09]} 71. Kf6 {[%emt 0:00:06]} 1-0

[Event "Western Asian Juniors Chess-ch 2023"]
[Site "Colombo"]
[Date "2023.11.30"]
[Round "1.3"]
[White "Janukshan, B."]
[Black "Harshavardhan G B"]
[Result "0-1"]
[ECO "A46"]
[WhiteElo "1635"]
[BlackElo "2390"]
[Annotator "RC"]
[PlyCount "92"]
[EventDate "2023.11.30"]
[EventCountry "SRI"]
[SourceTitle "playchess.com"]
[Source "ChessBase"]
[SourceQuality "1"]
[TimeControl "5400+30"]

1. d4 {[%emt 0:00:31]} Nf6 {[%emt 0:04:05]} 2. Nf3 {[%emt 0:00:40]} e6 {[%emt 0:00:23]} 3. g3 {[%emt 0:01:00]} b5 {[%emt 0:00:48]} 4. Bg2 {[%emt 0:02:49]} d5 {[%emt 0:00:37]} 5. a4 {[%emt 0:03:49]} b4 {[%emt 0:00:17]} 6. c4 {[%emt 0:02:38]} bxc3 {[%emt 0:00:35]} 7. Nxc3 {[%emt 0:00:54]} Nbd7 {[%emt 0:01:49]} 8. O-O {[%emt 0:09:52]} Bb7 {[%emt 0:02:22]} 9. Bf4 {[%emt 0:04:34]} a6 {[%emt 0:00:49]} 10. Qb3 {[%emt 0:02:04]} Rb8 {[%emt 0:02:31]} 11. Rac1 {[%emt 0:02:56]} Ba8 {[%emt 0:02:35]} 12. Qc2 {[%emt 0:02:36]} Rc8 {[%emt 0:03:09]} 13. Rfd1 {[%emt 0:06:43]} c5 {[%emt 0:03:43]} 14. e3 {[%emt 0:12:04]} Be7 {[%emt 0:00:59]} 15. Ne5 {[%emt 0:01:50]} O-O {[%emt 0:01:57]} 16. Nxd7 {[%emt 0:03:00]} Nxd7 {[%emt 0:00:39]} 17. h4 {[%emt 0:07:45]} Qb6 {[%emt 0:02:43]} 18. Qe2 {[%emt 0:03:01]} Bb7 {[%emt 0:01:55]} 19. h5 {[%emt 0:02:38]} h6 {[%emt 0:01:42]} 20. Rc2 {[%emt 0:05:46]} Rfd8 {[%emt 0:04:10]} 21. Rcd2 {[%emt 0:07:00]} Bf6 {[%emt 0:02:42]} 22. Qg4 {[%emt 0:03:45]} Kh8 {[%emt 0:00:29]} 23. Bf1 {[%emt 0:05:09]} Re8 {[%emt 0:03:06]} 24. Bg2 {[%emt 0:00:39]} Rcd8 {[%emt 0:04:31]} 25. Qh3 {[%emt 0:02:55]} Be7 {[%emt 0:01:21]} 26. g4 {[%emt 0:00:40]} Rc8 {[%emt 0:01:40]} 27. Qg3 {[%emt 0:01:12]} Nf6 {[%emt 0:00:43]} 28. Bf3 {[%emt 0:01:04]} Nh7 {[%emt 0:00:25]} 29. dxc5 {[%emt 0:03:03]} Bxc5 {[%emt 0:10:00]} 30. Be5 {[%emt 0:00:38]} Bb4 {[%emt 0:03:00]} 31. Re2 {[%emt 0:01:53]} f6 {[%emt 0:02:22]} 32. Bd4 {[%emt 0:00:31]} Qa5 {[%emt 0:00:31]} 33. Na2 {[%emt 0:00:48]} Qxa4 {[%emt 0:00:34]} 34. b3 {[%emt 0:00:26]} Qb5 {[%emt 0:00:09]} 35. Nxb4 {[%emt 0:00:28]} Qxb4 {[%emt 0:00:08]} 36. Ra1 {[%emt 0:00:37]} Ng5 {[%emt 0:00:33]} 37. Bg2 {[%emt 0:00:30]} e5 {[%emt 0:00:53]} 38. Bb2 {[%emt 0:00:30]} Qxb3 {[%emt 0:00:27]} 39. f4 {[%emt 0:00:23]} Nf7 {[%emt 0:02:14]} 40. Kf2 {[%emt 0:00:38]} Rc2 {[%emt 0:00:38]} 41. Ba3 {[%emt 0:00:25]} exf4 {[%emt 0:01:12]} 42. Qxf4 {[%emt 0:00:14]} Ne5 {[%emt 0:00:07]} 43. Qd4 {[%emt 0:00:33]} Nxg4+ {[%emt 0:00:17]} 44. Ke1 {[%emt 0:00:44]} Rxe2+ {[%emt 0:00:12]} 45. Kxe2 {[%emt 0:00:06]} Qc2+ {[%emt 0:00:09]} 46. Kf3 {[%emt 0:00:14]} Qf2+ {[%emt 0:00:15]} 0-1

[Event "Western Asian Juniors Chess-ch 2023"]
[Site "Colombo"]
[Date "2023.11.30"]
[Round "1.4"]
[White "Thilakarathne, G M H"]
[Black "Kulathilake, S M M P"]
[Result "1/2-1/2"]
[ECO "A06"]
[WhiteElo "2389"]
[BlackElo "1583"]
[Annotator "RC"]
[PlyCount "84"]
[EventDate "2023.11.30"]
[EventCountry "SRI"]
[SourceTitle "playchess.com"]
[Source "ChessBase"]
[SourceQuality "1"]
[TimeControl "5400+30"]

1. Nf3 {[%emt 0:04:38]} d5 {[%emt 0:00:20]} 2. b3 {[%emt 0:01:01]} Nf6 {[%emt 0:00:58]} 3. Bb2 {[%emt 0:03:05]} e6 {[%emt 0:00:31]} 4. g3 {[%emt 0:04:41]} Bd6 {[%emt 0:02:20]} 5. Bg2 {[%emt 0:00:07]} Nbd7 {[%emt 0:00:29]} 6. O-O {[%emt 0:01:03]} b6 {[%emt 0:05:29]} 7. c4 {[%emt 0:05:07]} Bb7 {[%emt 0:00:45]} 8. cxd5 {[%emt 0:18:44]} Bxd5 {[%emt 0:01:32]} 9. d3 {[%emt 0:01:16]} e5 {[%emt 0:08:28]} 10. Nc3 {[%emt 0:02:46]} Bb7 {[%emt 0:01:00]} 11. Nb5 {[%emt 0:01:36]} O-O {[%emt 0:05:42]} 12. Nxd6 {[%emt 0:04:37]} cxd6 {[%emt 0:00:37]} 13. Ba3 {[%emt 0:01:07]} Qe7 {[%emt 0:03:15]} 14. Nh4 {[%emt 0:17:12]} Bxg2 {[%emt 0:00:11]} 15. Kxg2 {[%emt 0:00:18]} Qe6 {[%emt 0:01:29]} 16. e4 {[%emt 0:07:45]} Rfd8 {[%emt 0:04:17]} 17. Nf5 {[%emt 0:02:47]} Nc5 {[%emt 0:03:16]} 18. Rc1 {[%emt 0:07:19]} Rac8 {[%emt 0:04:42]} 19. Qe2 {[%emt 0:01:43]} d5 {[%emt 0:04:09]} 20. f3 {[%emt 0:03:09]} dxe4 {[%emt 0:05:34]} 21. dxe4 {[%emt 0:00:08]} g6 {[%emt 0:00:38]} 22. Ne3 {[%emt 0:01:26]} Kg7 {[%emt 0:04:57]} 23. Bxc5 {[%emt 0:02:16]} bxc5 {[%emt 0:01:12]} 24. Rc2 {[%emt 0:01:15]} Rd4 {[%emt 0:00:20]} 25. Qb5 {[%emt 0:01:36]} Qb6 {[%emt 0:02:49]} 26. Qe2 {[%emt 0:00:53]} Rcd8 {[%emt 0:01:07]} 27. Rf2 {[%emt 0:00:17]} h5 {[%emt 0:06:31]} 28. Nc4 {[%emt 0:00:28]} Qc7 {[%emt 0:00:42]} 29. h4 {[%emt 0:00:54]} Nd7 {[%emt 0:00:43]} 30. Nb2 {[%emt 0:00:42]} Nb6 {[%emt 0:00:54]} 31. Qb5 {[%emt 0:01:20]} Rc8 {[%emt 0:04:24]} 32. Nd3 {[%emt 0:01:03]} Qd7 {[%emt 0:00:58]} 33. Qxd7 {[%emt 0:00:05]} Nxd7 {[%emt 0:00:01]} 34. Nb2 {[%emt 0:04:02]} Nb6 {[%emt 0:00:36]} 35. Rc3 {[%emt 0:00:17]} c4 {[%emt 0:01:11]} 36. b4 {[%emt 0:00:40]} Rcd8 {[%emt 0:01:10]} 37. Rcc2 {[%emt 0:00:38]} f5 {[%emt 0:00:30]} 38. exf5 {[%emt 0:00:11]} gxf5 {[%emt 0:00:02]} 39. a4 {[%emt 0:00:12]} e4 {[%emt 0:00:31]} 40. fxe4 {[%emt 0:00:11]} fxe4 {[%emt 0:00:02]} 41. Rfe2 {[%emt 0:02:25]} Rc8 {[%emt 0:26:38]} 42. a5 {[%emt 0:00:30]} Nd5 {[%emt 0:00:30]} 1/2-1/2

[Event "Western Asian Juniors Chess-ch 2023"]
[Site "Colombo"]
[Date "2023.11.30"]
[Round "1.5"]
[White "Sathsindu, W M Minura"]
[Black "Raahul V S"]
[Result "0-1"]
[ECO "E01"]
[WhiteElo "1542"]
[BlackElo "2350"]
[Annotator "RC"]
[PlyCount "98"]
[EventDate "2023.11.30"]
[EventCountry "SRI"]
[SourceTitle "playchess.com"]
[Source "ChessBase"]
[SourceQuality "1"]
[TimeControl "5400+30"]

1. d4 {[%emt 0:00:04]} d5 {[%emt 0:03:44]} 2. Nf3 {[%emt 0:00:16]} Nf6 {[%emt 0:00:11]} 3. c4 {[%emt 0:00:11]} e6 {[%emt 0:00:05]} 4. g3 {[%emt 0:00:06]} Nbd7 {[%emt 0:01:40]} 5. Qc2 {[%emt 0:01:26]} dxc4 {[%emt 0:00:55]} 6. Bg2 {[%emt 0:01:04]} Rb8 {[%emt 0:02:43]} 7. Qxc4 {[%emt 0:00:32]} c5 {[%emt 0:00:54]} 8. O-O {[%emt 0:04:57]} b5 {[%emt 0:00:35]} 9. Qc2 {[%emt 0:00:56]} Bb7 {[%emt 0:00:25]} 10. dxc5 {[%emt 0:04:14]} Bxc5 {[%emt 0:00:16]} 11. Bg5 {[%emt 0:03:39]} Qb6 {[%emt 0:05:13]} 12. Nc3 {[%emt 0:09:53]} Ng4 {[%emt 0:01:34]} 13. Nd1 {[%emt 0:06:27]} h6 {[%emt 0:04:17]} 14. Bd2 {[%emt 0:04:01]} Rc8 {[%emt 0:00:19]} 15. Qb1 {[%emt 0:02:07]} b4 {[%emt 0:02:27]} 16. h3 {[%emt 0:05:10]} Ngf6 {[%emt 0:00:57]} 17. Ne3 {[%emt 0:02:11]} Ne4 {[%emt 0:00:27]} 18. Qe1 {[%emt 0:04:12]} Nxg3 {[%emt 0:02:44]} 19. fxg3 {[%emt 0:01:15]} Bxe3+ {[%emt 0:00:05]} 20. Bxe3 {[%emt 0:00:09]} Qxe3+ {[%emt 0:00:05]} 21. Qf2 {[%emt 0:03:03]} Qxf2+ {[%emt 0:00:07]} 22. Kxf2 {[%emt 0:00:07]} Nf6 {[%emt 0:01:00]} 23. Rfc1 {[%emt 0:04:20]} O-O {[%emt 0:03:25]} 24. Ne5 {[%emt 0:04:44]} Bxg2 {[%emt 0:05:31]} 25. Kxg2 {[%emt 0:00:13]} Rcd8 {[%emt 0:00:40]} 26. Rc2 {[%emt 0:03:46]} Rd5 {[%emt 0:04:26]} 27. Nc6 {[%emt 0:01:53]} Rg5 {[%emt 0:00:16]} 28. Kf3 {[%emt 0:02:17]} a5 {[%emt 0:04:54]} 29. Rd1 {[%emt 0:03:40]} Rf5+ {[%emt 0:00:34]} 30. Kg2 {[%emt 0:02:01]} Kh7 {[%emt 0:00:57]} 31. Rf1 {[%emt 0:02:40]} Rd5 {[%emt 0:00:48]} 32. Rf3 {[%emt 0:04:25]} Rc8 {[%emt 0:04:18]} 33. Rd3 {[%emt 0:03:28]} Rb5 {[%emt 0:00:16]} 34. b3 {[%emt 0:02:20]} Ne4 {[%emt 0:01:33]} 35. Nxb4 {[%emt 0:01:28]} Rbc5 {[%emt 0:00:05]} 36. Rxc5 {[%emt 0:00:53]} Nxc5 {[%emt 0:00:05]} 37. Rd4 {[%emt 0:01:47]} e5 {[%emt 0:00:14]} 38. Rc4 {[%emt 0:00:19]} axb4 {[%emt 0:00:05]} 39. Rxb4 {[%emt 0:00:02]} Ne6 {[%emt 0:00:06]} 40. a4 {[%emt 0:00:53]} Rc2 {[%emt 0:00:10]} 41. Re4 {[%emt 0:02:01]} f6 {[%emt 0:01:04]} 42. Kf1 {[%emt 0:01:02]} Nd4 {[%emt 0:00:36]} 43. b4 {[%emt 0:00:25]} Rb2 {[%emt 0:00:04]} 44. b5 {[%emt 0:00:29]} Rb4 {[%emt 0:00:22]} 45. e3 {[%emt 0:00:21]} Rb1+ {[%emt 0:00:04]} 46. Kf2 {[%emt 0:00:46]} Rb2+ {[%emt 0:00:05]} 47. Ke1 {[%emt 0:00:33]} f5 {[%emt 0:00:09]} 48. exd4 {[%emt 0:01:21]} fxe4 {[%emt 0:00:05]} 49. d5 {[%emt 0:01:15]} Kg6 {[%emt 0:00:06]} 0-1

[Event "Western Asian Juniors Chess-ch 2023"]
[Site "Colombo"]
[Date "2023.11.30"]
[Round "1.6"]
[White "Orozbaev, Eldiar"]
[Black "Wijerathna, Vinuka Dihain"]
[Result "1-0"]
[ECO "C26"]
[WhiteElo "2278"]
[BlackElo "1534"]
[Annotator "RC"]
[PlyCount "77"]
[EventDate "2023.11.30"]
[EventCountry "SRI"]
[SourceTitle "playchess.com"]
[Source "ChessBase"]
[SourceQuality "1"]
[TimeControl "5400+30"]

1. e4 {[%emt 0:00:02]} e5 {[%emt 0:01:04]} 2. Nc3 {[%emt 0:00:05]} Nf6 {[%emt 0:00:20]} 3. d4 {[%emt 0:00:05]} exd4 {[%emt 0:00:11]} 4. Qxd4 {[%emt 0:00:03]} Nc6 {[%emt 0:00:15]} 5. Qd3 {[%emt 1:32:45]} Bc5 {[%emt 0:00:59]} 6. Qg3 {[%emt 0:00:30]} Qe7 7. Bd3 d5 8. Bg5 {[%emt 0:00:00]} Bd6 {[%emt 0:13:00]} 9. Qh4 {[%emt 0:00:00]} Nb4 {[%emt 0:01:18]} 10. O-O-O {[%emt 0:00:00]} Nxd3+ {[%emt 0:01:13]} 11. Rxd3 {[%emt 0:00:00]} Qe6 {[%emt 0:12:54]} 12. exd5 {[%emt 0:00:00]} Qg4 {[%emt 0:05:38]} 13. Re3+ {[%emt 0:00:00]} Kf8 {[%emt 0:00:41]} 14. Bxf6 {[%emt 0:00:00]} gxf6 {[%emt 0:00:44]} 15. Qh6+ {[%emt 0:00:00]} Qg7 {[%emt 0:01:07]} 16. Re8+ {[%emt 0:00:00]} Kxe8 {[%emt 0:00:16]} 17. Qxg7 {[%emt 0:00:00]} Rf8 {[%emt 0:00:14]} 18. Nf3 {[%emt 0:00:00]} Bf5 {[%emt 0:00:20]} 19. Nd4 {[%emt 0:00:00]} Bg6 {[%emt 0:00:12]} 20. Qxf6 {[%emt 0:00:00]} Kd7 {[%emt 0:00:18]} 21. Ncb5 {[%emt 0:00:00]} Be7 {[%emt 0:00:19]} 22. Qf4 {[%emt 0:00:00]} Bd8 {[%emt 0:00:14]} 23. h4 {[%emt 0:00:00]} h5 {[%emt 1:00:43]} 24. g4 Rh8 25. gxh5 Rxh5 26. Qg4+ Ke8 27. Ne6 Rxd5 28. Nbxc7+ Bxc7 29. Nxc7+ Kf8 30. Nxd5 Rd8 31. Qb4+ Kg7 32. Qc3+ Kg8 {[%emt 0:00:00]} 33. Ne7+ {[%emt 0:13:30]} Kh7 {[%emt 0:00:00]} 34. h5 {[%emt 0:00:00]} Be4 {[%emt 0:00:00]} 35. Rg1 {[%emt 0:00:00]} f6 {[%emt 0:00:00]} 36. Qxf6 {[%emt 0:00:00]} Rd1+ {[%emt 0:00:00]} 37. Kxd1 {[%emt 0:00:00]} Bf3+ {[%emt 0:00:00]} 38. Kc1 {[%emt 0:00:00]} Bxh5 {[%emt 0:07:30]} 39. Qg7# {[%emt 0:00:00]} 1-0